[Event "*** SCC Grand Prix: Titled Tuesday Blitz"]
[Site "Chess.com"]
[Date "2020.07.21"]
[Round "7"]
[White "Semen_Khanin"]
[Black "LPSupi"]
[Result "1-0"]
[WhiteElo "2759"]
[BlackElo "2861"]
[TimeControl "180+1"]
[EndTime "11:18:32 PDT"]
[Termination "Semen_Khanin won by checkmate"]

1. e4 {[%clk 0:02:52.8]} 1... c5 {[%clk 0:02:59.3]} 2. Nf3 {[%clk 0:02:52.2]}
2... d6 {[%clk 0:02:59.8]} 3. d4 {[%clk 0:02:52.2]} 3... cxd4 {[%clk 0:03:00.7]}
4. Nxd4 {[%clk 0:02:52.4]} 4... Nf6 {[%clk 0:03:01.3]} 5. Nc3 {[%clk 0:02:53]}
5... a6 {[%clk 0:03:02.1]} 6. f3 {[%clk 0:02:53.5]} 6... e5 {[%clk 0:03:01.8]}
7. Nb3 {[%clk 0:02:54.1]} 7... Be6 {[%clk 0:03:01.6]} 8. Be3 {[%clk 0:02:53.7]}
8... h5 {[%clk 0:03:02.1]} 9. Qd2 {[%clk 0:02:50.9]} 9... Nbd7 {[%clk 0:03:02]}
10. Nd5 {[%clk 0:02:50.7]} 10... Bxd5 {[%clk 0:03:02]} 11. exd5 {[%clk 0:02:51]}
11... g6 {[%clk 0:03:02]} 12. Be2 {[%clk 0:02:51]} 12... Bg7 {[%clk 0:03:01.8]}
13. c4 {[%clk 0:02:49.9]} 13... b6 {[%clk 0:03:00.3]} 14. O-O {[%clk 0:02:49.3]}
14... O-O {[%clk 0:02:57.9]} 15. Rae1 {[%clk 0:02:49.2]} 15... Re8 {[%clk
0:02:56.6]} 16. Kh1 {[%clk 0:02:48.7]} 16... a5 {[%clk 0:02:51.7]} 17. Na1
{[%clk 0:02:41]} 17... e4 {[%clk 0:02:51.6]} 18. Nb3 {[%clk 0:02:39.5]} 18...
exf3 {[%clk 0:02:45.7]} 19. gxf3 {[%clk 0:02:39.7]} 19... Nh7 {[%clk 0:02:18.9]}
20. Nd4 {[%clk 0:02:37.1]} 20... Qh4 {[%clk 0:02:18.3]} 21. Bf2 {[%clk 0:02:28]}
21... Qh3 {[%clk 0:02:16.4]} 22. Rg1 {[%clk 0:02:25.7]} 22... Nc5 {[%clk
0:02:04.1]} 23. Nb5 {[%clk 0:02:07.9]} 23... Re7 {[%clk 0:01:02.2]} 24. Bg3
{[%clk 0:01:56.8]} 24... Be5 {[%clk 0:00:33.9]} 25. Nxd6 {[%clk 0:01:37.7]}
25... Qd7 {[%clk 0:00:30]} 26. Ne4 {[%clk 0:01:30.7]} 26... Nxe4 {[%clk
0:00:28.1]} 27. fxe4 {[%clk 0:01:30]} 27... Nf6 {[%clk 0:00:19.5]} 28. Bxe5
{[%clk 0:01:26.5]} 28... Rxe5 {[%clk 0:00:19.9]} 29. Qf4 {[%clk 0:01:26.1]}
29... Qe7 {[%clk 0:00:20]} 30. Bd3 {[%clk 0:01:24.8]} 30... Re8 {[%clk
0:00:19.9]} 31. Rgf1 {[%clk 0:01:20.7]} 31... Kg7 {[%clk 0:00:17.7]} 32. Qf2
{[%clk 0:01:07.2]} 32... Qd6 {[%clk 0:00:15]} 33. Qd4 {[%clk 0:01:07.3]} 33...
R8e7 {[%clk 0:00:14.1]} 34. Re2 {[%clk 0:01:05.8]} 34... Nd7 {[%clk 0:00:12.4]}
35. a3 {[%clk 0:01:03]} 35... Kg8 {[%clk 0:00:11.7]} 36. Bc2 {[%clk 0:00:56.1]}
36... Rg5 {[%clk 0:00:10.3]} 37. b4 {[%clk 0:00:41.1]} 37... axb4 {[%clk
0:00:09.6]} 38. axb4 {[%clk 0:00:41.2]} 38... Qxb4 {[%clk 0:00:07.3]} 39. d6
{[%clk 0:00:41.2]} 39... Re6 {[%clk 0:00:06.2]} 40. Ref2 {[%clk 0:00:41.6]}
40... f6 {[%clk 0:00:01.8]} 41. e5 {[%clk 0:00:38.5]} 41... Rexe5 {[%clk
0:00:02.1]} 42. Be4 {[%clk 0:00:24.4]} 42... Kg7 {[%clk 0:00:02]} 43. Bc6 {[%clk
0:00:23.6]} 43... Rg4 {[%clk 0:00:01.8]} 44. Qd3 {[%clk 0:00:17.8]} 44... Nc5
{[%clk 0:00:01.7]} 45. Qf3 {[%clk 0:00:17.7]} 45... Qxc4 {[%clk 0:00:02]} 46.
Qxf6+ {[%clk 0:00:17.6]} 46... Kh6 {[%clk 0:00:02.9]} 47. Qh8+ {[%clk
0:00:17.6]} 47... Kg5 {[%clk 0:00:03.5]} 48. Qf6+ {[%clk 0:00:14.5]} 48... Kh6
{[%clk 0:00:03.9]} 49. Qf8+ {[%clk 0:00:14.7]} 49... Kg5 {[%clk 0:00:03.4]} 50.
Qd8+ {[%clk 0:00:10.9]} 50... Kh6 {[%clk 0:00:03.8]} 51. Rf8 {[%clk 0:00:10.9]}
51... Re8 {[%clk 0:00:01.6]} 52. Qxe8 {[%clk 0:00:07.1]} 52... Ne6 {[%clk
0:00:01.6]} 53. Rh8+ {[%clk 0:00:06.5]} 53... Kg5 {[%clk 0:00:01.9]} 54. Qe7#
{[%clk 0:00:06.7]} 1-0

[Event "*** SCC Grand Prix: Titled Tuesday Blitz"]
[Site "Chess.com"]
[Date "2020.07.21"]
[Round "7"]
[White "Indianlad"]
[Black "Beca95"]
[Result "1-0"]
[WhiteElo "2985"]
[BlackElo "2843"]
[TimeControl "180+1"]
[EndTime "11:18:35 PDT"]
[Termination "Indianlad won by resignation"]

1. d4 {[%clk 0:02:59.8]} 1... Nf6 {[%clk 0:02:59.3]} 2. c4 {[%clk 0:03:00.4]}
2... c5 {[%clk 0:02:59.7]} 3. d5 {[%clk 0:03:00.8]} 3... e6 {[%clk 0:03:00.3]}
4. Nc3 {[%clk 0:03:00.9]} 4... exd5 {[%clk 0:03:01]} 5. cxd5 {[%clk 0:03:01.8]}
5... d6 {[%clk 0:03:01.5]} 6. e4 {[%clk 0:03:02]} 6... g6 {[%clk 0:03:01.9]} 7.
h3 {[%clk 0:02:59.3]} 7... Bg7 {[%clk 0:03:01.9]} 8. Be3 {[%clk 0:02:59.5]} 8...
O-O {[%clk 0:03:00.6]} 9. Nf3 {[%clk 0:02:59.7]} 9... Re8 {[%clk 0:02:57.5]} 10.
Nd2 {[%clk 0:02:59.9]} 10... Nbd7 {[%clk 0:02:44.9]} 11. Be2 {[%clk 0:02:57.7]}
11... h6 {[%clk 0:02:42.7]} 12. O-O {[%clk 0:02:57.3]} 12... g5 {[%clk
0:02:39.4]} 13. a4 {[%clk 0:02:57.8]} 13... Ne5 {[%clk 0:02:38.9]} 14. f4 {[%clk
0:02:51.5]} 14... gxf4 {[%clk 0:02:39.8]} 15. Bxf4 {[%clk 0:02:51.3]} 15... Nh7
{[%clk 0:02:11.6]} 16. Ra3 {[%clk 0:02:48.2]} 16... Nf8 {[%clk 0:02:11]} 17. Qe1
{[%clk 0:02:35.8]} 17... Nfg6 {[%clk 0:02:10.5]} 18. Be3 {[%clk 0:02:36.4]}
18... Bd7 {[%clk 0:02:06.6]} 19. Qf2 {[%clk 0:02:28.3]} 19... Qe7 {[%clk
0:02:00.8]} 20. Rfa1 {[%clk 0:02:22.3]} 20... a6 {[%clk 0:01:58.4]} 21. Nf1
{[%clk 0:02:21.6]} 21... Rab8 {[%clk 0:01:54.2]} 22. Ng3 {[%clk 0:02:21.7]}
22... b5 {[%clk 0:01:49.4]} 23. axb5 {[%clk 0:02:22]} 23... axb5 {[%clk
0:01:50.3]} 24. Ra7 {[%clk 0:02:22.7]} 24... b4 {[%clk 0:01:49.7]} 25. Nb5
{[%clk 0:02:16.9]} 25... Qf8 {[%clk 0:01:47.4]} 26. Nc7 {[%clk 0:02:13.8]} 26...
Red8 {[%clk 0:01:30.1]} 27. Nf5 {[%clk 0:02:13.7]} 27... c4 {[%clk 0:01:22]} 28.
Bd4 {[%clk 0:02:03.6]} 28... c3 {[%clk 0:01:15.8]} 29. bxc3 {[%clk 0:02:03.7]}
29... b3 {[%clk 0:01:15.6]} 30. Ne6 {[%clk 0:01:56.7]} 30... fxe6 {[%clk
0:01:11.6]} 31. dxe6 {[%clk 0:01:57]} 31... b2 {[%clk 0:01:11.9]} 32. Rb1 {[%clk
0:01:57.1]} 32... Qe8 {[%clk 0:01:02.5]} 33. exd7 {[%clk 0:01:53.4]} 33... Rxd7
{[%clk 0:01:02.9]} 34. Rxd7 {[%clk 0:01:50.5]} 34... Qxd7 {[%clk 0:01:03.8]} 35.
Bh5 {[%clk 0:01:50.9]} 35... Nd3 {[%clk 0:00:58.3]} 36. Qg3 {[%clk 0:01:35.7]}
36... Nge5 {[%clk 0:00:51.2]} 37. Nxh6+ {[%clk 0:01:34.5]} 37... Kh7 {[%clk
0:00:48.9]} 38. Nf5 {[%clk 0:01:33]} 38... Bf6 {[%clk 0:00:47.2]} 39. Be2 {[%clk
0:01:29.3]} 39... Rg8 {[%clk 0:00:45.2]} 40. Qe3 {[%clk 0:01:29.3]} 40... Bg5
{[%clk 0:00:45.7]} 41. Qxd3 {[%clk 0:01:26.4]} 41... Nxd3 {[%clk 0:00:45.3]} 42.
Bxd3 {[%clk 0:01:27.3]} 42... Qb7 {[%clk 0:00:44.1]} 43. Nxd6 {[%clk 0:01:25.3]}
43... Qb3 {[%clk 0:00:41.6]} 44. e5+ {[%clk 0:01:25.5]} 44... Rg6 {[%clk
0:00:34.8]} 45. Rf1 {[%clk 0:01:20.6]} 45... Kg7 {[%clk 0:00:15.4]} 46. Nf5+
{[%clk 0:01:10.9]} 46... Kh8 {[%clk 0:00:13.9]} 47. Nd6 {[%clk 0:01:09.7]} 47...
Rg7 {[%clk 0:00:09.2]} 48. Rf8+ {[%clk 0:00:59.2]} 48... Qg8 {[%clk 0:00:08.1]}
49. Rxg8+ {[%clk 0:00:56.2]} 49... Kxg8 {[%clk 0:00:09]} 50. e6 {[%clk 0:00:51]}
50... Re7 {[%clk 0:00:08.5]} 51. Ne4 {[%clk 0:00:49.5]} 51... Bc1 {[%clk
0:00:07.7]} 52. Nf6+ {[%clk 0:00:44.3]} 52... Kf8 {[%clk 0:00:08]} 53. Bc5
{[%clk 0:00:44.5]} 53... Be3+ {[%clk 0:00:08]} 54. Bxe3 {[%clk 0:00:44.3]} 54...
Rxe6 {[%clk 0:00:08.9]} 55. Bc5+ {[%clk 0:00:43.3]} 55... Kf7 {[%clk 0:00:09.4]}
56. Ne4 {[%clk 0:00:40.4]} 56... Ra6 {[%clk 0:00:09.5]} 57. Nd6+ {[%clk
0:00:35.9]} 57... Ke6 {[%clk 0:00:08.9]} 58. Nc4 {[%clk 0:00:36.4]} 58... Ra1+
{[%clk 0:00:07.9]} 59. Kf2 {[%clk 0:00:36.9]} 59... Kd5 {[%clk 0:00:03.4]} 60.
Nxb2 {[%clk 0:00:36.3]} 60... Kxc5 {[%clk 0:00:03.1]} 61. Be2 {[%clk 0:00:36.9]}
1-0

[Event "*** SCC Grand Prix: Titled Tuesday Blitz"]
[Site "Chess.com"]
[Date "2020.07.21"]
[Round "7"]
[White "Ariadna_Atreides"]
[Black "warmoatmeal"]
[Result "0-1"]
[WhiteElo "2111"]
[BlackElo "2358"]
[TimeControl "180+1"]
[EndTime "11:18:35 PDT"]
[Termination "warmoatmeal won by resignation"]

1. d4 {[%clk 0:03:00.9]} 1... Nf6 {[%clk 0:02:56.8]} 2. Nf3 {[%clk 0:03:01.2]}
2... b6 {[%clk 0:02:54.5]} 3. e3 {[%clk 0:03:00.5]} 3... Bb7 {[%clk 0:02:54.7]}
4. Bd3 {[%clk 0:03:01.1]} 4... e6 {[%clk 0:02:54]} 5. b3 {[%clk 0:02:58.2]} 5...
Be7 {[%clk 0:02:54.3]} 6. Bb2 {[%clk 0:02:58.2]} 6... O-O {[%clk 0:02:54.8]} 7.
O-O {[%clk 0:02:57.4]} 7... d6 {[%clk 0:02:55.4]} 8. c4 {[%clk 0:02:56.3]} 8...
Nbd7 {[%clk 0:02:55.7]} 9. Nbd2 {[%clk 0:02:49.8]} 9... c5 {[%clk 0:02:55.3]}
10. Qe2 {[%clk 0:02:48.8]} 10... Qc7 {[%clk 0:02:55.2]} 11. Rac1 {[%clk
0:02:48.1]} 11... e5 {[%clk 0:02:52.8]} 12. d5 {[%clk 0:02:44.7]} 12... Rae8
{[%clk 0:02:49.9]} 13. Bb1 {[%clk 0:02:12.2]} 13... Bc8 {[%clk 0:02:44.3]} 14.
Ne1 {[%clk 0:01:53.5]} 14... g6 {[%clk 0:02:41.9]} 15. Qd3 {[%clk 0:01:52]}
15... Kg7 {[%clk 0:02:37.5]} 16. f4 {[%clk 0:01:49.3]} 16... Ng4 {[%clk
0:02:32.9]} 17. h3 {[%clk 0:01:42.3]} 17... Nh6 {[%clk 0:02:29.9]} 18. fxe5
{[%clk 0:01:21]} 18... Nxe5 {[%clk 0:02:30.8]} 19. Nef3 {[%clk 0:01:10.1]} 19...
f6 {[%clk 0:02:28.8]} 20. Nxe5 {[%clk 0:01:02.2]} 20... fxe5 {[%clk 0:02:29.7]}
21. e4 {[%clk 0:00:59.5]} 21... Bg5 {[%clk 0:02:28.2]} 22. Nf3 {[%clk
0:00:58.3]} 22... Bxc1 {[%clk 0:02:27]} 23. Bxc1 {[%clk 0:00:56.9]} 23... Nf7
{[%clk 0:02:23.1]} 24. Qe3 {[%clk 0:00:55.7]} 24... Qe7 {[%clk 0:02:19.7]} 25.
a3 {[%clk 0:00:52.1]} 25... Kg8 {[%clk 0:02:17.6]} 26. b4 {[%clk 0:00:51.3]}
26... h6 {[%clk 0:01:59.4]} 27. Bd3 {[%clk 0:00:38.8]} 27... g5 {[%clk
0:01:58.6]} 28. Be2 {[%clk 0:00:32.7]} 28... Nh8 {[%clk 0:01:56.4]} 29. Qf2
{[%clk 0:00:27.6]} 29... Ng6 {[%clk 0:01:56.1]} 30. h4 {[%clk 0:00:21.7]} 30...
g4 {[%clk 0:01:54.4]} 31. Bxh6 {[%clk 0:00:16.3]} 31... gxf3 {[%clk 0:01:54.4]}
32. Bxf8 {[%clk 0:00:15.8]} 32... Rxf8 {[%clk 0:01:55.3]} 33. Bxf3 {[%clk
0:00:15.5]} 33... Nxh4 {[%clk 0:01:53.2]} 34. Qg3+ {[%clk 0:00:14.8]} 34... Kh8
{[%clk 0:01:48.2]} 35. Qh2 {[%clk 0:00:14.8]} 35... Kg7 {[%clk 0:01:45.1]} 36.
Qg3+ {[%clk 0:00:14.1]} 36... Kh6 {[%clk 0:01:44.3]} 37. Qh2 {[%clk 0:00:13.3]}
37... Qg5 {[%clk 0:01:22.2]} 38. g3 {[%clk 0:00:11.4]} 38... Qe3+ {[%clk
0:01:22.1]} 39. Kh1 {[%clk 0:00:10.5]} 39... Rxf3 {[%clk 0:01:12.1]} 40. Qxh4+
{[%clk 0:00:10.5]} 40... Kg6 {[%clk 0:01:12.3]} 41. Rg1 {[%clk 0:00:06.9]} 41...
Qh6 {[%clk 0:01:08.8]} 42. Qxh6+ {[%clk 0:00:05.4]} 42... Kxh6 {[%clk
0:01:09.7]} 43. bxc5 {[%clk 0:00:04.5]} 43... bxc5 {[%clk 0:01:08.2]} 44. Rb1
{[%clk 0:00:05]} 44... Rxa3 {[%clk 0:01:07.9]} 45. Rb8 {[%clk 0:00:05.1]} 45...
Bg4 {[%clk 0:01:08.1]} 46. Rd8 {[%clk 0:00:04.7]} 46... Bf3+ {[%clk 0:01:07.1]}
47. Kh2 {[%clk 0:00:04.4]} 47... Bxe4 {[%clk 0:01:08]} 48. Rxd6+ {[%clk
0:00:03.5]} 48... Kg5 {[%clk 0:01:08.2]} 49. Re6 {[%clk 0:00:03.2]} 49... Ra1
{[%clk 0:01:08.1]} 50. Rxe5+ {[%clk 0:00:02.1]} 50... Bf5 {[%clk 0:01:05.2]} 51.
d6 {[%clk 0:00:02.2]} 51... Kf6 {[%clk 0:00:58.7]} 52. Rxc5 {[%clk 0:00:01.9]}
52... Bd7 {[%clk 0:00:52.6]} 53. Rc7 {[%clk 0:00:01.6]} 53... Ke6 {[%clk
0:00:52.6]} 54. c5 {[%clk 0:00:01.8]} 54... Ra2+ {[%clk 0:00:18]} 55. Kg1 {[%clk
0:00:02]} 55... Rc2 {[%clk 0:00:17.7]} 56. Kh1 {[%clk 0:00:01.7]} 56... a5
{[%clk 0:00:17]} 57. g4 {[%clk 0:00:02]} 57... a4 {[%clk 0:00:16.9]} 58. g5
{[%clk 0:00:02.5]} 58... a3 {[%clk 0:00:17.4]} 59. g6 {[%clk 0:00:02.6]} 59...
a2 {[%clk 0:00:17.8]} 60. Ra7 {[%clk 0:00:02.7]} 60... Rc1+ {[%clk 0:00:15.3]}
61. Kg2 {[%clk 0:00:03.2]} 61... a1=Q {[%clk 0:00:15.6]} 62. Rxa1 {[%clk
0:00:02.1]} 62... Rxa1 {[%clk 0:00:16.5]} 63. g7 {[%clk 0:00:02.2]} 63... Kf7
{[%clk 0:00:17]} 64. c6 {[%clk 0:00:01.6]} 64... Bxc6+ {[%clk 0:00:17.4]} 65.
Kg3 {[%clk 0:00:02.2]} 65... Kxg7 {[%clk 0:00:17.9]} 0-1

[Event "*** SCC Grand Prix: Titled Tuesday Blitz"]
[Site "Chess.com"]
[Date "2020.07.21"]
[Round "7"]
[White "Phriex"]
[Black "TudorAnton"]
[Result "1-0"]
[WhiteElo "2392"]
[BlackElo "2499"]
[TimeControl "180+1"]
[EndTime "11:18:41 PDT"]
[Termination "Phriex won by resignation"]

1. d4 {[%clk 0:03:00.9]} 1... Nf6 {[%clk 0:02:59.4]} 2. c4 {[%clk 0:03:01.4]}
2... e6 {[%clk 0:02:59.7]} 3. Nc3 {[%clk 0:02:56.8]} 3... Bb4 {[%clk 0:02:56.9]}
4. Qc2 {[%clk 0:02:56.8]} 4... c5 {[%clk 0:02:56]} 5. dxc5 {[%clk 0:02:56.4]}
5... O-O {[%clk 0:02:56.6]} 6. Nf3 {[%clk 0:02:56]} 6... Na6 {[%clk 0:02:56]} 7.
a3 {[%clk 0:02:55]} 7... Bxc3+ {[%clk 0:02:53.7]} 8. Qxc3 {[%clk 0:02:55.9]}
8... Nxc5 {[%clk 0:02:51.9]} 9. e3 {[%clk 0:02:54.6]} 9... b6 {[%clk 0:02:49]}
10. b4 {[%clk 0:02:51.9]} 10... Nce4 {[%clk 0:02:47.1]} 11. Qc2 {[%clk
0:02:51.9]} 11... d6 {[%clk 0:02:46.2]} 12. Bd3 {[%clk 0:02:51.2]} 12... Bb7
{[%clk 0:02:45.1]} 13. O-O {[%clk 0:02:50.5]} 13... e5 {[%clk 0:02:45.2]} 14.
Bb2 {[%clk 0:02:47.3]} 14... Rc8 {[%clk 0:02:45.6]} 15. Rfd1 {[%clk 0:02:46.2]}
15... Qc7 {[%clk 0:02:44.5]} 16. Rac1 {[%clk 0:02:44.8]} 16... h6 {[%clk
0:02:40.7]} 17. Qe2 {[%clk 0:02:42.4]} 17... Qb8 {[%clk 0:02:39.4]} 18. Bb1
{[%clk 0:02:40.1]} 18... Rfd8 {[%clk 0:02:38.3]} 19. h3 {[%clk 0:02:25.1]} 19...
Qa8 {[%clk 0:02:31.3]} 20. Ba2 {[%clk 0:02:09.1]} 20... Ng5 {[%clk 0:02:30.7]}
21. Ne1 {[%clk 0:01:45.5]} 21... Ne6 {[%clk 0:02:13.6]} 22. Nf3 {[%clk
0:01:36.8]} 22... Bxf3 {[%clk 0:02:11.7]} 23. Qxf3 {[%clk 0:01:37.2]} 23... Qxf3
{[%clk 0:02:10.4]} 24. gxf3 {[%clk 0:01:38.1]} 24... Kf8 {[%clk 0:02:09.6]} 25.
c5 {[%clk 0:01:27.5]} 25... dxc5 {[%clk 0:01:58.6]} 26. Bxe6 {[%clk 0:01:27.3]}
26... fxe6 {[%clk 0:01:57.8]} 27. Rxd8+ {[%clk 0:01:25.1]} 27... Rxd8 {[%clk
0:01:57.4]} 28. bxc5 {[%clk 0:01:25.1]} 28... bxc5 {[%clk 0:01:53.2]} 29. Rxc5
{[%clk 0:01:18.2]} 29... Nd7 {[%clk 0:01:51.6]} 30. Rc7 {[%clk 0:01:15.3]} 30...
Ke8 {[%clk 0:01:50.7]} 31. Rxa7 {[%clk 0:01:13.5]} 31... Rb8 {[%clk 0:01:51.3]}
32. Bc3 {[%clk 0:01:11.5]} 32... Rb3 {[%clk 0:01:47.2]} 33. Bb4 {[%clk
0:01:09.4]} 33... g5 {[%clk 0:01:47.7]} 34. Ra8+ {[%clk 0:01:06.6]} 34... Kf7
{[%clk 0:01:47.5]} 35. Ra7 {[%clk 0:01:05.2]} 35... Ke8 {[%clk 0:01:47.1]} 36.
Kg2 {[%clk 0:01:05.8]} 36... h5 {[%clk 0:01:46.6]} 37. Ra8+ {[%clk 0:01:03.8]}
37... Kf7 {[%clk 0:01:45.8]} 38. Ra7 {[%clk 0:01:03.8]} 38... Ke8 {[%clk
0:01:45.3]} 39. Kg3 {[%clk 0:01:04.4]} 39... Rb1 {[%clk 0:01:40.5]} 40. h4
{[%clk 0:00:55.6]} 40... gxh4+ {[%clk 0:01:35.6]} 41. Kxh4 {[%clk 0:00:55.7]}
41... Rh1+ {[%clk 0:01:35.8]} 42. Kg3 {[%clk 0:00:46]} 42... Rg1+ {[%clk
0:01:34.9]} 43. Kh2 {[%clk 0:00:45.2]} 43... Rf1 {[%clk 0:01:34.8]} 44. Kg2
{[%clk 0:00:44.8]} 44... Rb1 {[%clk 0:01:33.5]} 45. Ra8+ {[%clk 0:00:44]} 45...
Kf7 {[%clk 0:01:33.6]} 46. Rh8 {[%clk 0:00:44.9]} 46... Nf6 {[%clk 0:01:33.3]}
47. Bd6 {[%clk 0:00:34.6]} 47... Rb5 {[%clk 0:01:31.8]} 48. e4 {[%clk
0:00:30.4]} 48... Kg7 {[%clk 0:01:17.3]} 49. Ra8 {[%clk 0:00:27.5]} 49... h4
{[%clk 0:01:15.8]} 50. Kh3 {[%clk 0:00:23.5]} 50... Rb3 {[%clk 0:01:14.8]} 51.
Bxe5 {[%clk 0:00:20.8]} 51... Rxf3+ {[%clk 0:01:14.3]} 52. Kxh4 {[%clk
0:00:21.2]} 52... Kg6 {[%clk 0:01:12.8]} 53. Bxf6 {[%clk 0:00:20.5]} 53... Rxf6
{[%clk 0:01:11.1]} 54. Kg3 {[%clk 0:00:20.7]} 54... Rf7 {[%clk 0:01:07.4]} 55.
f4 {[%clk 0:00:20]} 55... Kf6 {[%clk 0:01:07.8]} 56. Ra6 {[%clk 0:00:19.5]}
56... Rg7+ {[%clk 0:01:06]} 57. Kf3 {[%clk 0:00:20.1]} 57... Rg1 {[%clk
0:01:03.3]} 58. f5 {[%clk 0:00:19.4]} 58... Rf1+ {[%clk 0:01:03.3]} 59. Ke2
{[%clk 0:00:19]} 59... Ra1 {[%clk 0:01:03.4]} 60. Rxe6+ {[%clk 0:00:18.9]} 60...
Kg5 {[%clk 0:01:03.9]} 61. Ra6 {[%clk 0:00:17]} 61... Kf4 {[%clk 0:01:04.5]} 62.
Kd3 {[%clk 0:00:13.5]} 62... Rd1+ {[%clk 0:01:03.6]} 63. Kc4 {[%clk 0:00:10.1]}
63... Kxe4 {[%clk 0:01:02.5]} 64. f6 {[%clk 0:00:10.7]} 64... Rc1+ {[%clk
0:01:02.4]} 65. Kb5 {[%clk 0:00:10.3]} 65... Rf1 {[%clk 0:01:03]} 66. a4 {[%clk
0:00:09.6]} 66... Kd5 {[%clk 0:01:03.4]} 67. a5 {[%clk 0:00:07.9]} 67... Rb1+
{[%clk 0:01:03.4]} 68. Ka4 {[%clk 0:00:08.2]} 68... Kc5 {[%clk 0:01:03.9]} 69.
f7 {[%clk 0:00:05.8]} 69... Rf1 {[%clk 0:01:01.1]} 70. Ra7 {[%clk 0:00:05.8]}
70... Kc6 {[%clk 0:01:00.5]} 71. Kb4 {[%clk 0:00:05.7]} 71... Rf4+ {[%clk
0:00:58.8]} 72. Kc3 {[%clk 0:00:05.7]} 72... Kb5 {[%clk 0:00:58.8]} 73. Kd3
{[%clk 0:00:05.2]} 73... Kc6 {[%clk 0:00:59.3]} 74. Ke3 {[%clk 0:00:05.6]} 74...
Rf1 {[%clk 0:00:58.7]} 75. Ke4 {[%clk 0:00:06]} 75... Kd6 {[%clk 0:00:58.9]} 76.
Kd4 {[%clk 0:00:05.3]} 76... Rf4+ {[%clk 0:00:58.4]} 77. Ke3 {[%clk 0:00:05.6]}
77... Rf1 {[%clk 0:00:59.3]} 78. a6 {[%clk 0:00:05.7]} 78... Kc6 {[%clk
0:00:57.9]} 79. Ke2 {[%clk 0:00:05.2]} 79... Rf5 {[%clk 0:00:57.2]} 80. Ke3
{[%clk 0:00:05.6]} 80... Kb6 {[%clk 0:00:57.5]} 81. Re7 {[%clk 0:00:04.1]} 81...
Kxa6 {[%clk 0:00:57.8]} 82. Ke4 {[%clk 0:00:04.6]} 82... Kb6 {[%clk 0:00:58.7]}
83. Kxf5 {[%clk 0:00:04.7]} 1-0